lending/lending_fUSD_20250130
["ID","MTS","AMOUNT","RATE_DAILY","PERIOD"]
[350993996,1738272653122,-500.0,0.00019178,2]
[350993997,1738272653132,-1000.0,0.00019178,30]
[350993998,1738272653141,-500.0,0.00019178,2]
[350993999,1738272653150,-501.82295941,0.00019178,2]
[350994000,1738272653160,-500.0,0.00019178,2]
[350994001,1738272653169,-1599.03,0.00019178,2]
[350994002,1738272653178,-500.0,0.00019178,2]
[350994003,1738272653188,-2047.63,0.00019178,2]
[350994004,1738272653197,-500.0,0.00019178,2]
[350994005,1738272653207,-500.0,0.00019178,2]
[350994006,1738272653216,-1887.73,0.00019178,2]
[350994007,1738272653225,-500.0,0.00019178,2]
[350994008,1738272653235,-500.0,0.00019178,2]
[350994009,1738272653244,-500.0,0.00019178,2]
[350994010,1738272653254,-500.0,0.00019178,2]
[350994011,1738272653264,-500.0,0.00019178,2]
[350994012,1738272653273,-500.0,0.00019178,2]
[350994013,1738272653283,-500.0,0.00019178,2]
[350994014,1738272653292,-500.0,0.00019178,2]
[350994015,1738272653301,-500.0,0.00019178,2]
[350994016,1738272653311,-500.0,0.00019178,2]
[350994017,1738272653320,-828.39,0.00019178,2]
[350994018,1738272653330,-512.35,0.00019178,2]
[350994019,1738272653342,-500.0,0.00019178,2]
[350994020,1738272653351,-500.0,0.00019178,2]
[350994021,1738272653363,-500.0,0.00019178,2]
[350994022,1738272653373,-500.0,0.00019178,2]
[350994023,1738272653383,-500.0,0.00019178,2]
[350994024,1738272653393,-500.0,0.00019178,2]
[350994025,1738272653402,-1318.24,0.00019178,2]
[350994026,1738272653413,-500.0,0.00019178,2]
[350994027,1738272653424,-500.0,0.00019178,2]
[350994028,1738272653439,-500.0,0.00019178,2]
[350994029,1738272653449,-2053.0,0.00019178,2]
[350994030,1738272653459,-989.79,0.00019178,2]
[350994031,1738272653471,-500.0,0.00019178,2]
[350994032,1738272653480,-500.0,0.00019178,2]
[350994033,1738272653490,-500.0,0.00019178,2]
[350994034,1738272653501,-500.0,0.00019178,2]
[350994035,1738272653511,-500.0,0.00019178,2]
[350994036,1738272653523,-500.0,0.00019178,2]
[350994037,1738272653533,-500.0,0.00019178,2]
[350994038,1738272653543,-500.0,0.00019178,2]
[350994039,1738272653553,-583.76,0.00019178,2]
[350994040,1738272653565,-500.0,0.00019178,2]
[350994041,1738272653575,-509.43,0.00019178,2]
[350994042,1738272653586,-500.0,0.00019178,2]
[350994043,1738272653596,-560.06,0.00019178,2]
[350994044,1738272653606,-500.0,0.00019178,2]
[350994045,1738272653615,-500.0,0.00019178,2]
[350994046,1738272653624,-500.0,0.00019178,2]
[350994047,1738272653634,-1604.74,0.00019178,2]
[350994048,1738272653643,-500.0,0.00019178,2]
[350994049,1738272653653,-500.0,0.00019178,2]
[350994050,1738272653662,-500.0,0.00019178,2]
[350994051,1738272653671,-500.0,0.00019178,2]
[350994052,1738272653681,-500.0,0.00019178,2]
[350994053,1738272653691,-150.275349,0.00019178,2]
[350994054,1738272653701,-1069.82,0.00019178,2]
[350994055,1738272653710,-1055.3,0.00019178,2]
[350994056,1738272653719,-500.0,0.00019178,2]
[350994057,1738272653729,-500.0,0.00019178,2]
[350994058,1738272653738,-500.0,0.00019178,2]
[350994059,1738272653747,-500.0,0.00019178,2]
[350994060,1738272653757,-500.0,0.00019178,2]
[350994061,1738272653766,-500.0,0.00019178,2]
[350994062,1738272653776,-2097.94,0.00019178,2]
[350994063,1738272653785,-500.0,0.00019178,2]
[350994064,1738272653794,-500.0,0.00019178,2]
[350994065,1738272653804,-500.0,0.00019178,2]
[350994066,1738272653813,-532.28513862,0.00019178,2]
[350994067,1738272653822,-1014.296237,0.00019178,2]
[350994068,1738272653831,-1014.296237,0.00019178,2]
[350994069,1738272653841,-1014.296237,0.00019178,2]
[350994070,1738272653850,-1014.296237,0.00019178,2]
[350994071,1738272653859,-500.0,0.00019178,2]
[350994072,1738272653868,-1317.1,0.00019178,2]
[350994073,1738272653878,-1014.296237,0.00019178,2]
[350994074,1738272653888,-500.0,0.00019178,2]
[350994075,1738272653898,-1014.296237,0.00019178,2]
[350994076,1738272653907,-1014.296237,0.00019178,2]
[350994077,1738272653917,-500.0,0.00019178,2]
[350994078,1738272653927,-854.98,0.00019178,2]
[350994079,1738272653936,-746.08,0.00019178,2]
[350994080,1738272653945,-500.0,0.00019178,2]
[350994081,1738272653955,-1014.296237,0.00019178,2]
[350994082,1738272653964,-510.01582137,0.00019178,2]
[350994083,1738272653973,-1014.296237,0.00019178,2]
[350994084,1738272653982,-500.0,0.00019178,2]
[350994085,1738272653992,-1014.296237,0.00019178,2]
[350994086,1738272654001,-1014.296237,0.00019178,2]
[350994087,1738272654010,-1014.296237,0.00019178,2]
[350994088,1738272654019,-1014.296237,0.00019178,2]
[350994089,1738272654029,-500.0,0.00019178,2]
[350994090,1738272654040,-1014.296233,0.00019178,2]
[350994091,1738272654050,-427.779885,0.00019178,2]
[350994092,1738272654059,-427.779885,0.00019178,2]
[350994093,1738272654069,-500.0,0.00019178,2]
[350994094,1738272654079,-427.779885,0.00019178,2]
[350994095,1738272654089,-909.65,0.00019178,2]
[350994096,1738272654098,-427.779885,0.00019178,2]
[350994097,1738272654107,-427.779885,0.00019178,2]
[350994098,1738272654117,-427.779885,0.00019178,2]
[350994099,1738272654126,-427.779885,0.00019178,2]
[350994100,1738272654135,-810.01,0.00019178,2]
[350994101,1738272654145,-500.0,0.00019178,2]
[350994102,1738272654154,-427.779885,0.00019178,2]
[350994103,1738272654163,-427.779885,0.00019178,2]
[350994104,1738272654173,-427.779885,0.00019178,2]
[350994105,1738272654182,-427.779885,0.00019178,2]
[350994106,1738272654191,-500.0,0.00019178,2]
[350994107,1738272654201,-500.0,0.00019178,2]
[350994108,1738272654210,-427.779885,0.00019178,2]
[350994109,1738272654219,-427.779885,0.00019178,2]
[350994110,1738272654228,-427.779879,0.00019178,2]
[350994111,1738272654237,-505.44016069,0.00019178,2]
[350994112,1738272654246,-472.69267347,0.00019178,2]
[350994113,1738272654256,-500.0,0.00019178,2]
[350994114,1738272654265,-500.0,0.00019178,2]
[350994115,1738272654274,-500.0,0.00019178,2]
[350994116,1738272654284,-500.0,0.00019178,2]
[350994117,1738272654293,-500.0,0.00019178,2]
[350994118,1738272654303,-3350.8,0.00019178,2]
[350994119,1738272654313,-500.0,0.00019178,2]
[350994120,1738272654323,-951.06,0.00019178,2]
[350994121,1738272654332,-500.0,0.00019178,2]
[350994122,1738272654342,-500.0,0.00019178,2]
[350994123,1738272654354,-500.0,0.00019178,2]
[350994124,1738272654363,-500.0,0.00019178,2]
[350994125,1738272654374,-1686.21,0.00019178,2]
[350994126,1738272654383,-500.0,0.00019178,2]
[350994127,1738272654393,-858.64,0.00019178,2]
[350994128,1738272654403,-500.0,0.00019178,2]
[350994129,1738272654413,-505.90959443,0.00019178,2]
[350994130,1738272654424,-500.0,0.00019178,2]
[350994131,1738272654434,-500.0,0.00019178,2]
[350994132,1738272654445,-500.0,0.00019178,2]
[350994133,1738272654454,-500.0,0.00019178,2]
[350994134,1738272654464,-500.0,0.00019178,2]
[350994135,1738272654473,-738.37,0.00019178,2]
[350994136,1738272654483,-500.0,0.00019178,2]
[350994137,1738272654492,-500.0,0.00019178,2]
[350994138,1738272654502,-508.26773276,0.00019178,2]
[350994139,1738272654512,-658.96,0.00019178,2]
[350994140,1738272654523,-500.0,0.00019178,2]
[350994141,1738272654533,-1119.66,0.00019178,2]
[350994142,1738272654543,-500.0,0.00019178,2]
[350994143,1738272654552,-564.47,0.00019178,2]
[350994144,1738272654562,-500.0,0.00019178,2]
[350994145,1738272654572,-500.0,0.00019178,2]
[350994146,1738272654583,-1093.34,0.00019178,2]
[350994147,1738272654593,-500.0,0.00019178,2]
[350994148,1738272654603,-500.0,0.00019178,2]
[350994149,1738272654614,-500.0,0.00019178,2]
[350994150,1738272654624,-594.04478226,0.00019178,2]
[350994151,1738272654635,-512.29550536,0.00019178,2]
[350994152,1738272654644,-500.0,0.00019178,2]
[350994153,1738272654653,-500.0,0.00019178,2]
[350994154,1738272654663,-500.0,0.00019178,2]
[350994155,1738272654673,-990.85,0.00019178,2]
[350994156,1738272654892,-500.0,0.00019178,2]
[350994157,1738272654902,-500.0,0.00019178,2]
[350994158,1738272654911,-500.0,0.00019178,2]
[350994159,1738272654921,-500.0,0.00019178,2]
[350994160,1738272654931,-500.0,0.00019178,2]
[350994161,1738272654941,-509.61,0.00019178,2]
[350994162,1738272654951,-500.0,0.00019178,2]
[350994163,1738272654961,-500.0,0.00019178,2]
[350994164,1738272654970,-500.0,0.00019178,2]
[350994165,1738272654980,-500.0,0.00019178,2]
[350994166,1738272654990,-513.07362114,0.00019178,2]
[350994167,1738272654999,-719.79,0.00019178,2]
[350994168,1738272655009,-500.0,0.00019178,2]
[350994169,1738272655019,-151.0,0.00019178,2]
[350994170,1738272655029,-500.0,0.00019178,2]
[350994171,1738272655039,-500.0,0.00019178,2]
[350994172,1738272655050,-500.0,0.00019178,2]
[350994173,1738272655059,-506.11,0.00019178,2]
[350994174,1738272655069,-789.82,0.00019178,2]
[350994175,1738272655078,-500.0,0.00019178,2]
[350994176,1738272655088,-500.0,0.00019178,2]
[350994177,1738272655097,-500.0,0.00019178,2]
[350994178,1738272655107,-935.55,0.00019178,2]
[350994179,1738272655116,-500.0,0.00019178,2]
[350994180,1738272655126,-500.0,0.00019178,2]
[350994181,1738272655136,-500.0,0.00019178,2]
[350994182,1738272655146,-500.0,0.00019178,2]
[350994183,1738272655156,-589.67,0.00019178,2]
[350994184,1738272655165,-500.0,0.00019178,2]
[350994185,1738272655176,-500.0,0.00019178,2]
[350994186,1738272655185,-500.0,0.00019178,2]
[350994187,1738272655195,-944.99,0.00019178,2]
[350994188,1738272655204,-500.0,0.00019178,2]
[350994189,1738272655214,-505.8991116,0.00019178,2]
[350994190,1738272655224,-1360.95,0.00019178,2]
[350994191,1738272655233,-853.57,0.00019178,2]
[350994192,1738272655243,-501.99,0.00019178,2]
[350994193,1738272655253,-500.0,0.00019178,2]
[350994194,1738272655263,-500.0,0.00019178,2]
[350994195,1738272655273,-500.0,0.00019178,2]
[350994196,1738272655284,-500.0,0.00019178,2]
[350994197,1738272655295,-500.0,0.00019178,2]
[350994198,1738272655305,-151.0,0.00019178,2]
[350994199,1738272655315,-151.0,0.00019178,2]
[350994200,1738272655325,-151.0,0.00019178,2]
[350994201,1738272655334,-151.0,0.00019178,2]
[350994202,1738272655345,-500.0,0.00019178,2]
[350994203,1738272655357,-500.0,0.00019178,2]
[350994204,1738272655366,-151.0,0.00019178,2]
[350994205,1738272655376,-1019.62,0.00019178,2]
[350994206,1738272655386,-618.78,0.00019178,2]
[350994207,1738272655397,-151.0,0.00019178,2]
[350994208,1738272655409,-817.33,0.00019178,2]
[350994209,1738272655419,-500.0,0.00019178,2]
[350994210,1738272655430,-500.0,0.00019178,2]
[350994211,1738272655440,-800.15,0.00019178,2]
[350994212,1738272655450,-500.0,0.00019178,2]
[350994213,1738272655459,-500.0,0.00019178,2]
[350994214,1738272655469,-513.67065826,0.00019178,2]
[350994215,1738272655478,-500.0,0.00019178,2]
[350994216,1738272655488,-500.0,0.00019178,2]
[350994217,1738272655499,-829.23,0.00019178,2]
[350994218,1738272655508,-500.0,0.00019178,2]
[350994219,1738272655518,-500.0,0.00019178,2]
[350994220,1738272655529,-526.37,0.00019178,2]
[350994221,1738272655538,-500.0,0.00019178,2]
[350994222,1738272655547,-500.0,0.00019178,2]
[350994223,1738272655557,-500.0,0.00019178,2]
[350994224,1738272655566,-500.0,0.00019178,2]
[350994225,1738272655576,-500.0,0.00019178,2]
[350994226,1738272655586,-500.0,0.00019178,2]
[350994227,1738272655596,-500.0,0.00019178,2]
[350994228,1738272655606,-500.0,0.00019178,2]
[350994229,1738272655615,-653.54,0.00019178,2]
[350994230,1738272655625,-500.0,0.00019178,2]
[350994231,1738272655635,-976.26,0.00019178,2]
[350994232,1738272655644,-944.54,0.00019178,2]
[350994233,1738272655654,-500.0,0.00019178,2]
[350994234,1738272655663,-310.69107585,0.00019178,2]
[350994235,1738272655673,-1559.21,0.00019178,2]
[350994236,1738272655684,-500.0,0.00019178,2]
[350994237,1738272655694,-500.0,0.00019178,2]
[350994238,1738272655703,-500.0,0.00019178,2]
[350994239,1738272655713,-545.63177905,0.00019178,2]
[350994240,1738272655723,-500.0,0.00019178,2]
[350994241,1738272655732,-500.0,0.00019178,2]
[350994242,1738272655742,-500.0,0.00019178,2]
[350994243,1738272655752,-1564.54,0.00019178,2]
[350994244,1738272655761,-500.0,0.00019178,2]
[350994245,1738272655771,-1360.27,0.00019178,2]
[350994246,1738272655782,-500.0,0.00019178,2]
[350994247,1738272655792,-500.0,0.00019178,2]
[350994248,1738272655802,-500.0,0.00019178,2]
[350994249,1738272655812,-500.0,0.00019178,2]
[350994250,1738272655823,-500.0,0.00019178,2]
[350994251,1738272655833,-500.0,0.00019178,2]
[350994252,1738272655843,-500.0,0.00019178,2]
[350994253,1738272655852,-500.0,0.00019178,2]
[350994254,1738272655863,-2600.34,0.00019178,2]
[350994255,1738272655873,-500.0,0.00019178,2]
[350994256,1738272655885,-546.8222062,0.00019178,2]
[350994257,1738272655894,-500.0,0.00019178,2]
[350994258,1738272655904,-601.87,0.00019178,2]
[350994259,1738272655914,-500.0,0.00019178,2]
[350994260,1738272655923,-500.0,0.00019178,2]
[350994261,1738272655933,-500.0,0.00019178,2]
[350994262,1738272655943,-1513.71,0.00019178,2]
[350994263,1738272655953,-500.0,0.00019178,2]
[350994264,1738272655962,-500.0,0.00019178,2]
[350994265,1738272655972,-612.92,0.00019178,2]
[350994266,1738272655982,-500.0,0.00019178,2]
[350994267,1738272655991,-500.0,0.00019178,2]
[350994268,1738272656001,-688.65,0.00019178,2]
[350994269,1738272656011,-500.0,0.00019178,2]
[350994270,1738272656022,-1579.21,0.00019178,2]
[350994271,1738272656033,-500.0,0.00019178,2]
[350994272,1738272656043,-500.0,0.00019178,2]
[350994273,1738272656053,-615.99,0.00019178,2]
[350994274,1738272656063,-615.99,0.00019178,2]
[350994275,1738272656073,-500.00308066,0.00019178,2]
[350994276,1738272656082,-615.99,0.00019178,2]
[350994277,1738272656092,-615.99,0.00019178,2]
[350994278,1738272656102,-615.99,0.00019178,2]
[350994279,1738272656111,-968.28,0.00019178,2]
[350994280,1738272656121,-500.0,0.00019178,2]
[350994281,1738272656131,-500.0,0.00019178,2]
[350994282,1738272656140,-937.55,0.00019178,2]
[350994283,1738272656150,-588.21545937,0.00019178,2]
[350994284,1738272656161,-503.81313887,0.00019178,2]
[350994285,1738272656172,-835.89,0.00019178,2]
[350994286,1738272656182,-535.52,0.00019178,2]
[350994287,1738272656193,-514.9617298,0.00019178,2]
[350994288,1738272656203,-642.43822698,0.00019178,2]
[350994289,1738272656212,-949.68,0.00019178,2]
[350994290,1738272656222,-500.0,0.00019178,2]
[350994291,1738272656232,-500.0,0.00019178,2]
[350994292,1738272656242,-504.23205526,0.00019178,2]
[350994293,1738272656252,-500.0,0.00019178,2]
[350994294,1738272656262,-585.77699937,0.00019178,2]
[350994295,1738272656271,-837.29,0.00019178,2]
[350994296,1738272656283,-505.27559815,0.00019178,2]
[350994297,1738272656293,-614.76,0.00019178,2]
[350994298,1738272656303,-509.32950816,0.00019178,2]
[350994299,1738272656314,-221.613691,0.00019178,2]
[350994300,1738272656324,-221.613691,0.00019178,2]
[350994301,1738272656334,-503.40353347,0.00019178,2]
[350994302,1738272656344,-500.0,0.00019178,2]
[350994303,1738272656355,-221.613691,0.00019178,2]
[350994304,1738272656366,-221.613691,0.00019178,2]
[350994305,1738272656376,-500.0,0.00019178,2]
[350994306,1738272656385,-221.613691,0.00019178,2]
[350994307,1738272656395,-221.613691,0.00019178,2]
[350994308,1738272656406,-898.56,0.00019178,2]
[350994309,1738272656415,-500.0,0.00019178,2]
[350994310,1738272656425,-221.613691,0.00019178,2]
[350994311,1738272656436,-500.0,0.00019178,2]
[350994312,1738272656446,-500.0,0.00019178,2]
[350994313,1738272656456,-813.88,0.00019178,2]
[350994314,1738272656466,-221.613691,0.00019178,2]
[350994315,1738272656476,-221.613691,0.00019178,2]
[350994316,1738272656485,-500.0,0.00019178,2]
[350994317,1738272656495,-221.613691,0.00019178,2]
[350994318,1738272656505,-221.613691,0.00019178,2]
[350994319,1738272656515,-221.613691,0.00019178,2]
[350994320,1738272656525,-500.0,0.00019178,2]
[350994321,1738272656539,-221.613691,0.00019178,2]
[350994322,1738272656549,-500.0,0.00019178,2]
[350994323,1738272656558,-221.613689,0.00019178,2]
[350994324,1738272656568,-151.0,0.00019178,2]
[350994325,1738272656578,-962.39,0.00019178,2]
[350994326,1738272656588,-151.0,0.00019178,2]
[350994327,1738272656598,-999.21,0.00019178,2]
[350994328,1738272656608,-151.0,0.00019178,2]
[350994329,1738272656618,-151.0,0.00019178,2]
[350994330,1738272656628,-205.025779,0.00019178,2]
[350994331,1738272656637,-501.52262762,0.00019178,2]
[350994332,1738272656647,-500.0,0.00019178,2]
[350994333,1738272656657,-500.0,0.00019178,2]
[350994334,1738272656667,-259.75684105,0.00019178,2]
[350994335,1738272656676,-924.84,0.00019178,2]
[350994336,1738272656686,-500.0,0.00019178,2]
[350994337,1738272656695,-1774.97,0.00019178,2]
[350994338,1738272656705,-500.0,0.00019178,2]
[350994339,1738272656714,-944.71,0.00019178,2]
[350994340,1738272656724,-502.62824891,0.00019178,2]
[350994341,1738272656733,-500.0,0.00019178,2]
[350994342,1738272656743,-2470.33,0.00019178,2]
[350994343,1738272656753,-500.0,0.00019178,2]
[350994344,1738272656762,-504.66869947,0.00019178,2]
[350994345,1738272656771,-500.0,0.00019178,2]
[350994346,1738272656784,-500.0,0.00019178,2]
[350994347,1738272656794,-638.39,0.00019178,2]
[350994348,1738272656803,-550.69531345,0.00019178,2]
[350994349,1738272656813,-500.0,0.00019178,2]
[350994350,1738272656822,-500.0,0.00019178,2]
[350994351,1738272656832,-500.0,0.00019178,2]
[350994352,1738272656841,-500.0,0.00019178,2]
[350994353,1738272656851,-500.0,0.00019178,2]
[350994354,1738272656860,-1035.47,0.00019178,2]
[350994355,1738272656870,-500.0,0.00019178,2]
[350994356,1738272656879,-500.0,0.00019178,2]
[350994357,1738272656889,-1050.67,0.00019178,2]
[350994358,1738272656899,-816.99,0.00019178,2]
[350994359,1738272656908,-500.0,0.00019178,2]
[350994360,1738272656918,-500.0,0.00019178,2]
[350994361,1738272656928,-500.0,0.00019178,2]
[350994362,1738272656937,-500.0,0.00019178,2]
[350994363,1738272656947,-500.0,0.00019178,2]
[350994364,1738272656956,-500.0,0.00019178,2]
[350994365,1738272656966,-500.0,0.00019178,2]
[350994366,1738272656975,-500.0,0.00019178,2]
[350994367,1738272656984,-500.0,0.00019178,2]
[350994368,1738272656994,-500.0,0.00019178,2]
[350994369,1738272657004,-384.07570024,0.00019178,2]
[350994370,1738272657014,-500.0,0.00019178,2]
[350994371,1738272657023,-500.0,0.00019178,2]
[350994372,1738272657035,-500.0,0.00019178,2]
[350994373,1738272657044,-500.0,0.00019178,2]
[350994374,1738272657053,-500.0,0.00019178,2]
[350994375,1738272657062,-500.0,0.00019178,2]
[350994376,1738272657073,-500.0,0.00019178,2]
[350994377,1738272657082,-500.0,0.00019178,2]
[350994378,1738272657092,-500.0,0.00019178,2]
[350994379,1738272657101,-500.0,0.00019178,2]
[350994380,1738272657111,-629.75754926,0.00019178,2]
[350994381,1738272657120,-546.65,0.00019178,2]
[350994382,1738272657130,-1627.77,0.00019178,2]
[350994383,1738272657139,-500.0,0.00019178,2]
[350994384,1738272657148,-500.0,0.00019178,2]
[350994385,1738272657158,-500.0,0.00019178,2]
[350994386,1738272657167,-500.0,0.00019178,2]
[350994387,1738272657177,-500.0,0.00019178,2]
[350994388,1738272657188,-1170.55,0.00019178,2]
[350994389,1738272657197,-500.7902875,0.00019178,2]
[350994390,1738272657207,-500.0,0.00019178,2]
[350994391,1738272657216,-1210.620776,0.00019178,2]
[350994392,1738272657225,-151.0,0.00019178,2]
[350994393,1738272657235,-1392.68,0.00019178,2]
[350994394,1738272657245,-1210.620776,0.00019178,2]
[350994395,1738272657255,-151.321894,0.00019178,2]
[350994396,1738272657264,-1210.620776,0.00019178,2]
[350994397,1738272657274,-564.31,0.00019178,2]
[350994398,1738272657284,-1210.620776,0.00019178,2]
[350994399,1738272657293,-1210.620776,0.00019178,2]
[350994400,1738272657303,-500.0,0.00019178,2]
[350994401,1738272657312,-1210.620776,0.00019178,2]
[350994402,1738272657322,-500.0,0.00019178,2]
[350994403,1738272657331,-949.82,0.00019178,2]
[350994404,1738272657418,-1210.620776,0.00019178,2]
[350994405,1738272657429,-500.0,0.00019178,2]
[350994406,1738272657439,-1210.620776,0.00019178,2]
[350994407,1738272657448,-500.0,0.00019178,2]
[350994408,1738272657457,-1210.620776,0.00019178,2]
[350994409,1738272657467,-1210.620776,0.00019178,2]
[350994410,1738272657477,-1210.620776,0.00019178,2]
[350994411,1738272657486,-1210.620768,0.00019178,2]
[350994412,1738272657496,-500.0,0.00019178,2]
[350994413,1738272657505,-500.0,0.00019178,2]
[350994414,1738272657515,-500.0,0.00019178,2]
[350994415,1738272657524,-500.0,0.00019178,2]
[350994416,1738272657536,-1353.28,0.00019178,2]
[350994417,1738272657546,-151.0,0.00019178,2]
[350994418,1738272657555,-151.0,0.00019178,2]
[350994419,1738272657564,-151.0,0.00019178,2]
[350994420,1738272657575,-941.71,0.00019178,2]
[350994421,1738272657584,-151.0,0.00019178,2]
[350994422,1738272657595,-151.0,0.00019178,2]
[350994423,1738272657604,-151.0,0.00019178,2]
[350994424,1738272657613,-500.0,0.00019178,2]
[350994425,1738272657622,-500.0,0.00019178,2]
[350994426,1738272657632,-500.0,0.00019178,2]
[350994427,1738272657641,-151.0,0.00019178,2]
[350994428,1738272657651,-151.0,0.00019178,2]
[350994429,1738272657660,-919.75,0.00019178,2]
[350994430,1738272657670,-151.0,0.00019178,2]
[350994431,1738272657679,-500.0,0.00019178,2]
[350994432,1738272657688,-190.941313,0.00019178,2]
[350994433,1738272657697,-500.0,0.00019178,2]
[350994434,1738272657707,-2324.11,0.00019178,2]
[350994435,1738272657716,-1532.04,0.00019178,2]
[350994436,1738272657725,-500.0,0.00019178,2]
[350994437,1738272657734,-249.626125,0.00019178,2]
[350994438,1738272657743,-249.626125,0.00019178,2]
[350994439,1738272657753,-249.626125,0.00019178,2]
[350994440,1738272657762,-249.626125,0.00019178,2]
[350994441,1738272657772,-500.0,0.00019178,2]
[350994442,1738272657782,-249.626125,0.00019178,2]
[350994443,1738272657791,-1728.6,0.00019178,2]
[350994444,1738272657801,-249.626125,0.00019178,2]
[350994445,1738272657810,-500.0,0.00019178,2]
[350994446,1738272657820,-500.0,0.00019178,2]
[350994447,1738272657830,-249.626125,0.00019178,2]
[350994448,1738272657840,-249.626125,0.00019178,2]
[350994449,1738272657849,-500.0,0.00019178,2]
[350994450,1738272657858,-249.626125,0.00019178,2]
[350994451,1738272657868,-500.0,0.00019178,2]
[350994452,1738272657878,-249.626125,0.00019178,2]
[350994453,1738272657887,-249.626125,0.00019178,2]
[350994454,1738272657896,-249.626119,0.00019178,2]
[350994455,1738272657906,-500.0,0.00019178,2]
[350994456,1738272657916,-1112.86,0.00019178,2]
[350994457,1738272657926,-500.0,0.00019178,2]
[350994458,1738272657936,-500.0,0.00019178,2]
[350994459,1738272657945,-500.0,0.00019178,2]
[350994460,1738272657955,-504.35653299,0.00019178,2]
[350994461,1738272657964,-678.05,0.00019178,2]
[350994462,1738272657974,-884.48,0.00019178,2]
[350994463,1738272657983,-500.0,0.00019178,2]
[350994464,1738272657993,-500.0,0.00019178,2]
[350994465,1738272658002,-1202.19,0.00019178,2]
[350994466,1738272658011,-648.2768,0.00019178,2]
[350994467,1738272658020,-500.0,0.00019178,2]
[350994468,1738272658031,-460.20621671,0.00019178,2]
[350994469,1738272658041,-500.0,0.00019178,2]
[350994470,1738272658050,-482.12552682,0.00019178,2]
[350994471,1738272658060,-500.0,0.00019178,2]
[350994472,1738272658069,-500.0,0.00019178,2]
[350994473,1738272658078,-2868.98,0.00019178,2]
[350994474,1738272658087,-500.0,0.00019178,2]
[350994475,1738272658097,-514.9467934,0.00019178,2]
[350994476,1738272658106,-770.15,0.00019178,2]
[350994477,1738272658116,-500.0,0.00019178,2]
[350994478,1738272658126,-546.07552847,0.00019178,2]
[350994479,1738272658135,-706.24,0.00019178,2]
[350994480,1738272658145,-808.08,0.00019178,2]
[350994481,1738272658154,-500.0,0.00019178,2]
[350994482,1738272658163,-500.28299632,0.00019178,2]
[350994483,1738272658173,-356.27635425,0.00019178,2]
[350994484,1738272658182,-500.0,0.00019178,2]
[350994485,1738272658192,-784.2,0.00019178,2]
[350994486,1738272658201,-151.0,0.00019178,2]
[350994487,1738272658211,-151.0,0.00019178,2]
[350994488,1738272658220,-266.547807,0.00019178,2]
[350994489,1738272658229,-1047.3,0.00019178,2]
[350994490,1738272658239,-834.39,0.00019178,2]
[350994491,1738272658249,-2053.34,0.00019178,2]
[350994492,1738272658258,-500.0,0.00019178,2]
[350994493,1738272658268,-1309.64,0.00019178,2]
[350994494,1738272658277,-500.0,0.00019178,2]
[350994495,1738272658288,-500.0,0.00019178,2]